fUST/lending_fUST_20250221
["ID","MTS","AMOUNT","RATE_DAILY","PERIOD"]
[353835616,1740084647898,-500.0,0.00014191,2]
[353835617,1740084647908,-850.98,0.00014191,2]
[353835618,1740084647917,-1207.04,0.00014191,2]
[353835619,1740084647926,-500.0,0.00014191,2]
[353835620,1740084647936,-1085.19,0.00014191,2]
[353835621,1740084647946,-500.0,0.00014191,2]
[353835622,1740084647956,-1390.83,0.00014191,2]
[353835623,1740084647965,-9513.21,0.00014191,2]
[353835624,1740084647975,-1084.98,0.00014191,2]
[353835625,1740084647985,-500.0,0.00014191,2]
[353835626,1740084647994,-3708.56,0.00014191,2]
[353835627,1740084648004,-500.0,0.00014191,2]
[353835628,1740084648014,-1928.52,0.00014191,2]
[353835629,1740084648023,-350.22116527,0.00014191,2]
[353835630,1740084648033,-500.0,0.00014191,2]
[353835631,1740084648043,-500.0,0.00014191,2]
[353835632,1740084648052,-360.23591674,0.00014191,2]
[353835633,1740084648062,-844.51,0.00014191,2]
[353835634,1740084648072,-500.0,0.00014191,2]
[353835635,1740084648081,-500.0,0.00014191,2]
[353835636,1740084648091,-500.0,0.00014191,2]
[353835637,1740084648100,-500.0,0.00014191,2]
[353835638,1740084648109,-500.0,0.00014191,2]
[353835639,1740084648119,-4636.66,0.00014191,2]
[353835640,1740084648130,-2224.68,0.00014191,2]
[353835641,1740084648139,-500.0,0.00014191,2]
[353835642,1740084648150,-9941.59,0.00014191,2]
[353835643,1740084648160,-1184.99,0.00014191,2]
[353835644,1740084648169,-997.99,0.00014191,2]
[353835645,1740084648179,-2714.81,0.000142,2]
[353835646,1740084648189,-1285.53859782,0.00014268,2]
[353835647,1740084648199,-500.0,0.00014273,2]
[353835648,1740084648208,-565.63793124,0.00014273,2]
[353835649,1740084648217,-500.0,0.00014273,2]
[353835650,1740084648227,-551.1225419,0.00014273,2]
[353835651,1740084648236,-500.0,0.00014273,2]
[353835652,1740084648245,-563.359996,0.00014273,2]
[353835653,1740084648255,-500.0,0.00014273,2]
[353835654,1740084648265,-500.0,0.00014273,2]
[353835655,1740084648274,-500.0,0.00014273,2]
[353835656,1740084648283,-500.0,0.00014273,2]
[353835657,1740084648293,-500.0,0.00014273,2]
[353835658,1740084648302,-547.65,0.00014273,2]
[353835659,1740084648312,-508.8,0.00014273,2]
[353835660,1740084648322,-500.0,0.00014273,2]
[353835661,1740084648331,-500.0,0.00014273,2]
[353835662,1740084648341,-500.0,0.00014273,2]
[353835663,1740084648350,-500.0,0.00014273,2]
[353835664,1740084648360,-360.05519945,0.00014273,2]
[353835665,1740084648370,-500.0,0.00014273,2]
[353835666,1740084648379,-500.0,0.00014273,2]
[353835667,1740084648389,-500.0,0.00014273,2]
[353835668,1740084648398,-500.0,0.00014273,2]
[353835669,1740084648407,-500.0,0.00014273,2]
[353835670,1740084648418,-500.0,0.00014273,2]
[353835671,1740084648427,-500.0,0.00014273,2]
[353835672,1740084648441,-3486.02,0.00014273,2]
[353835673,1740084648451,-570.83,0.00014273,2]
[353835674,1740084648461,-530.13,0.00014273,2]
[353835675,1740084648471,-500.0,0.00014273,2]
[353835676,1740084648482,-500.0,0.00014273,2]
[353835677,1740084648492,-21305.13,0.00014273,2]
[353835678,1740084648502,-1328.46,0.00014273,2]
[353835679,1740084648513,-815.99,0.00014273,2]
[353835680,1740084648523,-664.11,0.00014273,2]
[353835681,1740084648533,-500.0,0.00014273,2]
[353835682,1740084648543,-680.69,0.00014273,2]
[353835683,1740084648553,-1634.29,0.00014273,2]
[353835684,1740084648566,-688.47,0.00014273,2]
[353835685,1740084648576,-1868.77,0.00014273,2]
[353835686,1740084648586,-500.0,0.00014273,2]
[353835687,1740084648596,-500.0,0.00014273,2]
[353835688,1740084648607,-4052.8,0.00014273,2]
[353835689,1740084648617,-500.0,0.00014273,2]
[353835690,1740084648628,-665.71,0.00014273,2]
[353835691,1740084648639,-2544.88,0.00014273,2]
[353835692,1740084648648,-306.62239725,0.00014273,2]
[353835693,1740084648658,-2105.17,0.00014273,2]
[353835694,1740084648668,-500.0,0.00014273,2]
[353835695,1740084648678,-1364.24,0.00014273,2]
[353835696,1740084648688,-500.0,0.00014273,2]
[353835697,1740084648697,-500.0,0.00014273,2]
[353835698,1740084648707,-1068.86,0.00014273,2]
[353835699,1740084648716,-500.0,0.00014273,2]
[353835700,1740084648726,-500.0,0.00014273,2]
[353835701,1740084648735,-850.98,0.00014273,2]
[353835702,1740084648745,-1207.04,0.00014273,2]
[353835703,1740084648754,-500.0,0.00014273,2]
[353835704,1740084648764,-1085.19,0.00014273,2]
[353835705,1740084648774,-500.0,0.00014273,2]
[353835706,1740084648783,-1390.83,0.00014273,2]
[353835707,1740084648794,-9513.21,0.00014273,2]
[353835708,1740084648804,-1084.98,0.00014273,2]
[353835709,1740084648814,-500.0,0.00014273,2]
[353835710,1740084648824,-3708.56,0.00014273,2]
[353835711,1740084648834,-500.0,0.00014273,2]
[353835712,1740084648843,-1928.52,0.00014273,2]
[353835713,1740084648853,-500.0,0.00014273,2]
[353835714,1740084648863,-500.0,0.00014273,2]
[353835715,1740084648873,-844.51,0.00014273,2]
[353835716,1740084648883,-500.0,0.00014273,2]
[353835717,1740084648893,-500.0,0.00014273,2]
[353835718,1740084648903,-500.0,0.00014273,2]
[353835719,1740084648913,-500.0,0.00014273,2]
[353835720,1740084648923,-167.47,0.00014273,2]
[353835721,1740084648932,-4636.66,0.00014273,2]
[353835722,1740084648942,-2224.68,0.00014273,2]
[353835723,1740084648952,-500.0,0.00014273,2]
[353835724,1740084648962,-9941.59,0.00014273,2]
[353835725,1740084648973,-1184.99,0.00014273,2]
[353835726,1740084648983,-997.99,0.00014273,2]
[353835727,1740084648992,-150.0,0.00014327,2]
[353835728,1740084649001,-1969.0,0.00014327,2]
[353835729,1740084649010,-538.0,0.00014327,2]
[353835730,1740084649021,-2287.0,0.00014327,2]
[353835731,1740084649031,-396.0,0.00014327,2]
[353835732,1740084649042,-150.0,0.00014327,2]
[353835733,1740084649052,-601.52251346,0.00014356,2]
[353835734,1740084649063,-161.92015204,0.00014356,2]
[353835735,1740084649073,-180.994,0.00014356,2]
[353835736,1740084649082,-500.0,0.00014356,2]
[353835737,1740084649093,-500.0,0.00014356,2]
[353835738,1740084649102,-500.0,0.00014356,2]
[353835739,1740084649112,-500.0,0.00014356,2]
[353835740,1740084649122,-500.0,0.00014356,2]
[353835741,1740084649132,-500.0,0.00014356,2]
[353835742,1740084649142,-547.65,0.00014356,2]
[353835743,1740084649152,-508.8,0.00014356,2]
[353835744,1740084649161,-500.0,0.00014356,2]
[353835745,1740084649171,-500.0,0.00014356,2]
[353835746,1740084649181,-500.0,0.00014356,2]
[353835747,1740084649191,-500.0,0.00014356,2]
[353835748,1740084649200,-299.04315229,0.00014356,2]
[353835749,1740084649210,-500.0,0.00014356,2]
[353835750,1740084649221,-500.0,0.00014356,2]
[353835751,1740084649231,-500.0,0.00014356,2]
[353835752,1740084649240,-500.0,0.00014356,2]
[353835753,1740084649250,-500.0,0.00014356,2]
[353835754,1740084649260,-500.0,0.00014356,2]
[353835755,1740084649271,-3486.02,0.00014356,2]
[353835756,1740084649280,-570.83,0.00014356,2]
[353835757,1740084649291,-530.13,0.00014356,2]
[353835758,1740084649301,-500.0,0.00014356,2]
[353835759,1740084649311,-500.0,0.00014356,2]
[353835760,1740084649320,-13896.92518923,0.00014356,2]
[353835761,1740084649416,-301.79,0.00014356,2]
[353835762,1740084649558,-7106.41481077,0.00014356,2]
[353835763,1740084649569,-1328.46,0.00014356,2]
[353835764,1740084649580,-664.11,0.00014356,2]
[353835765,1740084649590,-500.0,0.00014356,2]
[353835766,1740084649599,-680.69,0.00014356,2]
[353835767,1740084649610,-1634.29,0.00014356,2]
[353835768,1740084649620,-688.47,0.00014356,2]
[353835769,1740084649631,-1868.77,0.00014356,2]
[353835770,1740084649641,-500.0,0.00014356,2]
[353835771,1740084649651,-500.0,0.00014356,2]
[353835772,1740084649661,-4052.8,0.00014356,2]
[353835773,1740084649670,-500.0,0.00014356,2]
[353835774,1740084649680,-665.71,0.00014356,2]
[353835775,1740084649690,-2544.88,0.00014356,2]
[353835776,1740084649700,-2105.17,0.00014356,2]
[353835777,1740084649709,-500.0,0.00014356,2]
[353835778,1740084649718,-1364.24,0.00014356,2]
[353835779,1740084649758,-500.0,0.00014356,2]
[353835780,1740084649768,-500.0,0.00014356,2]
[353835781,1740084649777,-1068.86,0.00014356,2]
[353835782,1740084649787,-500.0,0.00014356,2]
[353835783,1740084649796,-500.0,0.00014356,2]
[353835784,1740084649806,-850.98,0.00014356,2]
[353835785,1740084649816,-1207.04,0.00014356,2]
[353835786,1740084649825,-500.0,0.00014356,2]
[353835787,1740084649836,-1085.19,0.00014356,2]
[353835788,1740084649846,-500.0,0.00014356,2]
[353835789,1740084649856,-1390.83,0.00014356,2]
[353835790,1740084649867,-9513.21,0.00014356,2]
[353835791,1740084649880,-1084.98,0.00014356,2]
[353835792,1740084649890,-500.0,0.00014356,2]
[353835793,1740084649900,-3708.56,0.00014356,2]
[353835794,1740084649910,-500.0,0.00014356,2]
[353835795,1740084649921,-1928.52,0.00014356,2]
[353835796,1740084649931,-500.0,0.00014356,2]
[353835797,1740084649941,-500.0,0.00014356,2]
[353835798,1740084649951,-844.51,0.00014356,2]
[353835799,1740084649961,-500.0,0.00014356,2]
[353835800,1740084649972,-500.0,0.00014356,2]
[353835801,1740084649982,-500.0,0.00014356,2]
[353835802,1740084649992,-500.0,0.00014356,2]
[353835803,1740084650001,-4636.66,0.00014356,2]
[353835804,1740084650011,-2224.68,0.00014356,2]
[353835805,1740084650021,-500.0,0.00014356,2]
[353835806,1740084650031,-9941.59,0.00014356,2]
[353835807,1740084650040,-1184.99,0.00014356,2]
[353835808,1740084650049,-997.99,0.00014356,2]
[353835809,1740084650059,-2083.40765723,0.00014388,2]
[353835810,1740084650068,-2200.0,0.00014411,2]
[353835811,1740084650078,-1125.78062592,0.0001442,2]
[353835812,1740084650088,-500.0,0.00014438,2]
[353835813,1740084650098,-500.0,0.00014438,2]
[353835814,1740084650108,-500.0,0.00014438,2]
[353835815,1740084650117,-500.0,0.00014438,2]
[353835816,1740084650130,-500.0,0.00014438,2]
[353835817,1740084650140,-500.0,0.00014438,2]
[353835818,1740084650149,-547.65,0.00014438,2]
[353835819,1740084650158,-508.8,0.00014438,2]
[353835820,1740084650168,-500.0,0.00014438,2]
[353835821,1740084650178,-500.0,0.00014438,2]
[353835822,1740084650187,-500.0,0.00014438,2]
[353835823,1740084650197,-500.0,0.00014438,2]
[353835824,1740084650207,-500.0,0.00014438,2]
[353835825,1740084650218,-500.0,0.00014438,2]
[353835826,1740084650227,-500.0,0.00014438,2]
[353835827,1740084650237,-500.0,0.00014438,2]
[353835828,1740084650247,-547.58433372,0.00014438,2]
[353835829,1740084650256,-500.0,0.00014438,2]
[353835830,1740084650266,-3486.02,0.00014438,2]
[353835831,1740084650275,-570.83,0.00014438,2]
[353835832,1740084650286,-530.13,0.00014438,2]
[353835833,1740084650295,-500.0,0.00014438,2]
[353835834,1740084650306,-500.0,0.00014438,2]
[353835835,1740084650316,-21305.13,0.00014438,2]
[353835836,1740084650326,-1328.46,0.00014438,2]
[353835837,1740084650335,-664.11,0.00014438,2]
[353835838,1740084650345,-500.0,0.00014438,2]
[353835839,1740084650354,-680.69,0.00014438,2]
[353835840,1740084650364,-1634.29,0.00014438,2]
[353835841,1740084650375,-688.47,0.00014438,2]
[353835842,1740084650385,-1868.77,0.00014438,2]
[353835843,1740084650395,-500.0,0.00014438,2]
[353835844,1740084650404,-500.0,0.00014438,2]
[353835845,1740084650414,-4052.8,0.00014438,2]
[353835846,1740084650424,-500.0,0.00014438,2]
[353835847,1740084650435,-665.71,0.00014438,2]
[353835848,1740084650445,-2544.88,0.00014438,2]
[353835849,1740084650454,-2105.17,0.00014438,2]
[353835850,1740084650463,-500.0,0.00014438,2]
[353835851,1740084650474,-500.0,0.00014438,2]
[353835852,1740084650484,-1364.24,0.00014438,2]
[353835853,1740084650493,-500.0,0.00014438,2]
[353835854,1740084650502,-1068.86,0.00014438,2]
[353835855,1740084650513,-500.0,0.00014438,2]
[353835856,1740084650523,-500.0,0.00014438,2]
[353835857,1740084650533,-850.98,0.00014438,2]
[353835858,1740084650543,-1207.04,0.00014438,2]
[353835859,1740084650553,-188.30426012,0.00014438,2]
[353835860,1740084650562,-1085.19,0.00014438,2]
[353835861,1740084650572,-500.0,0.00014438,2]
[353835862,1740084650583,-1390.83,0.00014438,2]
[353835863,1740084650593,-9513.21,0.00014438,2]
[353835864,1740084650603,-1084.98,0.00014438,2]
[353835865,1740084650614,-500.0,0.00014438,2]
[353835866,1740084650625,-3708.56,0.00014438,2]
[353835867,1740084650635,-500.0,0.00014438,2]
[353835868,1740084650646,-1928.52,0.00014438,2]
[353835869,1740084650656,-500.0,0.00014438,2]
[353835870,1740084650666,-500.0,0.00014438,2]
[353835871,1740084650677,-844.51,0.00014438,2]
[353835872,1740084650687,-500.0,0.00014438,2]
[353835873,1740084650697,-500.0,0.00014438,2]
[353835874,1740084650707,-500.0,0.00014438,2]
[353835875,1740084650717,-500.0,0.00014438,2]
[353835876,1740084650727,-4636.66,0.00014438,2]
[353835877,1740084650737,-2224.68,0.00014438,2]
[353835878,1740084650747,-500.0,0.00014438,2]
[353835879,1740084650756,-9941.59,0.00014438,2]
[353835880,1740084650766,-1184.99,0.00014438,2]
[353835881,1740084650776,-997.99,0.00014438,2]
[353835882,1740084650786,-700.0,0.00014438,2]
[353835883,1740084650797,-9838.75480639,0.000145,5]
[353835884,1740084650807,-894760.93489484,0.000145,5]
[353835885,1740084651508,-500.0,0.00013698,2]
[353835886,1740084651519,-500.0,0.0001378,2]
[353835887,1740084651529,-500.0,0.00013863,2]
[353835888,1740084651540,-500.0,0.00013945,2]
[353835889,1740084651550,-91.4018282,0.00014027,2]
[353835890,1740084651562,-408.5981718,0.00014027,2]
[353835891,1740084651572,-500.0,0.00014109,2]
[353835892,1740084651582,-493.09886453,0.00014191,2]
[353835893,1740084651735,-6.90113547,0.00014191,2]
[353835894,1740084651745,-500.0,0.00014273,2]
[353835895,1740084651755,-196.52,0.00014356,2]
[353835896,1740084651765,-6932.71211997,0.000145,5]
[353835897,1740084651776,-486.500693,0.000145,5]
[353835898,1740084651815,-92850.6306872,0.000145,5]
[353835899,1740084651827,-1168.50427346,0.000145,5]
[353835902,1740085321474,361.622127,9.041e-05,2]
[353835904,1740085832702,-1548.54220353,0.00012,4]
[353835905,1740085832714,-535.9238181,0.00012056,2]
[353835906,1740085832724,-161.4708744,0.00012531,2]
[353835907,1740085832733,-300.0,0.00012717,2]
[353835909,1740085832742,-58843.6284608,0.00012718,2]
[353835911,1740085832751,-250.0,0.0001276,2]
[353835913,1740085832760,-700.0,0.00013068,2]
[353835915,1740085832770,-172.8321209,0.00013598,2]
[353835917,1740085832779,-500.0,0.00013678,2]
[353835920,1740085832789,-454.66120443,0.00013678,2]
[353835922,1740085832799,-500.0,0.00013678,2]
[353835924,1740085832808,-500.0,0.00013678,2]
[353835926,1740085832818,-153.73128215,0.00013678,2]
[353835928,1740085832828,-500.0,0.00013678,2]
[353835930,1740085832838,-500.0,0.00013678,2]
[353835932,1740085832847,-500.0,0.00013678,2]
[353835934,1740085832860,-500.0,0.00013678,2]
[353835936,1740085832869,-500.0,0.00013678,2]
[353835938,1740085832879,-500.0,0.00013678,2]
[353835940,1740085832889,-500.0,0.00013678,2]
[353835942,1740085832899,-500.0,0.00013678,2]
[353835944,1740085832909,-500.0,0.00013678,2]
[353835946,1740085832919,-500.0,0.00013678,2]
[353835948,1740085832929,-616.84350509,0.00013678,2]
[353835950,1740085832939,-500.0,0.00013678,2]
[353835952,1740085832949,-500.0,0.00013678,2]
[353835954,1740085832959,-501.42280111,0.00013698,2]
[353835956,1740085832969,-369.68652799,0.00013698,2]
[353835959,1740085832994,-130.31347201,0.00013698,2]
[353835961,1740085833004,-500.0,0.00013698,2]
[353835963,1740085833014,-500.0,0.00013698,2]
[353835965,1740085833023,-553.45754452,0.00013698,2]
[353835967,1740085833034,-505.12203579,0.00013698,2]
[353835969,1740085833043,-500.0,0.00013698,2]
[353835971,1740085833054,-500.0,0.00013698,2]
[353835973,1740085833064,-500.0,0.00013698,2]
[353835975,1740085833074,-500.0,0.00013698,2]
[353835977,1740085833083,-500.0,0.00013698,2]
[353835979,1740085833093,-500.0,0.00013698,2]
[353835981,1740085833103,-500.0,0.00013698,2]
[353835983,1740085833113,-500.0,0.00013698,2]
[353835985,1740085833123,-500.0,0.00013698,2]
[353835987,1740085833133,-500.0,0.00013698,2]
[353835989,1740085833143,-500.0,0.00013698,2]
[353835991,1740085833152,-500.0,0.00013698,2]
[353835993,1740085833163,-500.0,0.00013698,2]
[353835995,1740085833172,-500.0,0.00013698,2]
[353835997,1740085833183,-500.0,0.00013698,2]
[353835999,1740085833192,-500.0,0.00013698,2]
[353836001,1740085833202,-500.0,0.00013698,2]
[353836003,1740085833214,-500.0,0.00013698,2]
[353836005,1740085833223,-500.0,0.00013698,2]
[353836007,1740085833233,-585.62095595,0.00013698,2]
[353836009,1740085833243,-500.0,0.00013698,2]
[353836011,1740085833252,-902.1,0.00013698,2]
[353836013,1740085833262,-337.822169,0.00013698,2]
[353836015,1740085833271,-500.0,0.00013698,2]
[353836017,1740085833281,-205.39338985,0.00013698,2]
[353836019,1740085833291,-500.0,0.00013698,2]
[353836020,1740085833300,-500.0,0.00013698,2]
[353836022,1740085833310,-500.0,0.00013698,2]
[353836023,1740085833319,-355.89651006,0.00013698,2]
[353836024,1740085833329,-502.93496274,0.00013698,2]
[353836025,1740085833340,-500.0,0.00013698,2]
[353836026,1740085833352,-347.31657146,0.00013698,2]
[353836027,1740085833362,-507.25283716,0.00013698,2]
[353836028,1740085833372,-500.0,0.00013698,2]
[353836029,1740085833383,-500.0,0.00013698,2]
[353836030,1740085833394,-500.0,0.00013698,2]
[353836031,1740085833408,-388.91692074,0.00013698,2]
[353836032,1740085833421,-500.0,0.00013698,2]
[353836033,1740085833433,-500.0,0.00013698,2]
[353836034,1740085833445,-456.27296596,0.00013698,2]
[353836035,1740085833461,-502.62087509,0.00013698,2]
[353836036,1740085833476,-500.0,0.00013698,2]
[353836037,1740085833490,-500.0,0.00013698,2]
[353836038,1740085833503,-500.0,0.00013698,2]
[353836039,1740085833517,-630.41,0.00013698,2]
[353836040,1740085833529,-500.0,0.00013698,2]
[353836041,1740085833542,-500.0,0.00013698,2]
[353836042,1740085833552,-500.0,0.00013698,2]
[353836043,1740085833563,-500.0,0.00013698,2]
[353836044,1740085833574,-500.0,0.00013698,2]
[353836045,1740085833585,-500.0,0.00013698,2]
[353836046,1740085833597,-500.0,0.00013698,2]
[353836047,1740085833607,-500.0,0.00013698,2]
[353836048,1740085833616,-500.0,0.00013698,2]
[353836049,1740085833625,-500.0,0.00013698,2]
[353836050,1740085833642,-500.0,0.00013698,2]
[353836051,1740085833658,-500.0,0.00013698,2]
[353836052,1740085833668,-516.7648298,0.00013698,2]
[353836053,1740085833678,-500.0,0.00013698,2]
[353836054,1740085833691,-629.19797377,0.00013698,2]
[353836055,1740085833702,-500.0,0.00013698,2]
[353836056,1740085833714,-772.49,0.00013698,2]
[353836057,1740085833725,-873.43,0.00013698,2]
[353836058,1740085833737,-500.0,0.00013698,2]
[353836059,1740085833751,-500.0,0.00013698,2]
[353836060,1740085833764,-500.0,0.00013698,2]
[353836061,1740085833776,-500.0,0.00013698,2]
[353836062,1740085833786,-500.0,0.00013698,2]
[353836063,1740085833795,-500.0,0.00013698,2]
[353836064,1740085833805,-500.0,0.00013698,2]
[353836065,1740085833815,-500.0,0.00013698,2]
[353836066,1740085833824,-500.0,0.00013698,2]
[353836067,1740085833834,-500.0,0.00013698,2]
[353836068,1740085833844,-500.0,0.00013698,2]
[353836069,1740085833855,-500.0,0.00013698,2]
[353836070,1740085833865,-503.42881826,0.00013698,2]
[353836071,1740085833875,-500.0,0.00013698,2]
[353836072,1740085833884,-509.35448482,0.00013698,2]
[353836073,1740085833894,-507.82152645,0.00013698,2]
[353836074,1740085833905,-321.76369117,0.00013698,2]
[353836075,1740085833915,-761.3,0.00013698,2]
[353836076,1740085833925,-512.72007622,0.00013698,2]
[353836077,1740085833935,-500.0,0.00013698,2]
[353836078,1740085833946,-309.70583106,0.00013698,2]
[353836079,1740085833955,-500.0,0.00013698,2]
[353836080,1740085833966,-500.0,0.00013698,2]
[353836081,1740085833975,-500.0,0.00013698,2]
[353836082,1740085833985,-561.19,0.00013698,2]
[353836083,1740085833994,-500.0,0.00013698,2]
[353836084,1740085834003,-500.0,0.00013698,2]
[353836085,1740085834013,-500.0,0.00013698,2]
[353836086,1740085834023,-500.0,0.00013698,2]
[353836087,1740085834033,-500.0,0.00013698,2]
[353836088,1740085834053,-500.0,0.00013698,2]
[353836089,1740085834065,-500.0,0.00013698,2]
[353836090,1740085834075,-500.0,0.00013698,2]
[353836091,1740085834085,-518.62,0.00013698,2]
[353836092,1740085834095,-500.0,0.00013698,2]
[353836093,1740085834106,-500.0,0.00013698,2]
[353836094,1740085834116,-500.0,0.00013698,2]
[353836095,1740085834126,-500.0,0.00013698,2]
[353836096,1740085834135,-500.0,0.00013698,2]
[353836097,1740085834144,-500.0,0.00013698,2]
[353836098,1740085834154,-500.0,0.00013698,2]
[353836099,1740085834163,-500.0,0.00013698,2]
[353836100,1740085834174,-500.0,0.00013698,2]
[353836101,1740085834184,-500.0,0.00013698,2]
[353836102,1740085834193,-500.0,0.00013698,2]
[353836103,1740085834204,-500.0,0.00013698,2]
[353836104,1740085834214,-500.0,0.00013698,2]
[353836105,1740085834224,-500.0,0.00013698,2]
[353836106,1740085834234,-500.0,0.00013698,2]
[353836107,1740085834244,-607.82671516,0.00013698,2]
[353836149,1740085838652,-11612.04328484,0.00013698,2]
[353836151,1740085838662,-500.0,0.00013698,2]
[353836153,1740085838672,-3050.27,0.00013698,2]
[353836155,1740085838681,-500.0,0.00013698,2]
[353836157,1740085838690,-500.0,0.00013698,2]
[353836159,1740085838700,-515.6339278,0.00013698,2]
[353836161,1740085838710,-500.0,0.00013698,2]
[353836163,1740085838719,-500.0,0.00013698,2]
[353836165,1740085838728,-500.0,0.00013698,2]
[353836167,1740085838738,-771.85,0.00013698,2]
[353836169,1740085838747,-500.0,0.00013698,2]
[353836171,1740085838756,-500.0,0.00013698,2]
[353836173,1740085838765,-500.0,0.00013698,2]
[353836175,1740085838775,-883.99,0.00013698,2]
[353836177,1740085838784,-500.0,0.00013698,2]
[353836178,1740085838793,-546.01,0.00013698,2]
[353836179,1740085838802,-500.0,0.00013698,2]
[353836180,1740085838812,-500.0,0.00013698,2]
[353836182,1740085838821,-2362.88,0.00013698,2]
[353836184,1740085838830,-500.0,0.00013698,2]
[353836186,1740085838840,-500.0,0.00013698,2]
[353836187,1740085838849,-33637.8,0.00013698,2]
[353836188,1740085838861,-675.8,0.00013698,2]
[353836189,1740085838870,-906.49,0.00013698,2]
[353836190,1740085838879,-500.0,0.00013698,2]
[353836191,1740085838888,-500.0,0.00013698,2]
[353836192,1740085838897,-500.0,0.00013698,2]
[353836193,1740085838908,-1881.99,0.00013698,2]
[353836194,1740085838917,-500.0,0.00013698,2]
[353836195,1740085838926,-2460.54,0.00013698,2]
[353836196,1740085838935,-940.83,0.00013698,2]
[353836197,1740085838944,-964.32,0.00013698,2]
[353836198,1740085838953,-526.23355883,0.00013698,2]
[353836199,1740085838966,-4809.95644117,0.00013698,2]
[353836200,1740085838975,-500.0,0.00013698,2]
[353836201,1740085838984,-509.3,0.00013698,2]
[353836202,1740085838993,-500.0,0.00013698,2]
[353836203,1740085839002,-500.0,0.00013698,2]
[353836204,1740085839011,-500.0,0.00013698,2]
[353836205,1740085839020,-500.0,0.00013698,2]
[353836206,1740085839030,-500.0,0.00013698,2]
[353836207,1740085839039,-500.0,0.00013698,2]
[353836208,1740085839048,-500.0,0.00013698,2]
[353836209,1740085839058,-500.0,0.00013698,2]
[353836210,1740085839067,-500.0,0.00013698,2]
[353836211,1740085839076,-500.0,0.00013698,2]
[353836212,1740085839086,-500.0,0.00013698,2]
[353836213,1740085839095,-3128.08,0.00013698,2]
[353836214,1740085839104,-500.0,0.00013698,2]
[353836215,1740085839113,-500.0,0.00013698,2]
[353836216,1740085839123,-500.0,0.00013698,2]
[353836217,1740085839132,-500.0,0.00013698,2]
[353836218,1740085839141,-500.0,0.00013698,2]
[353836219,1740085839150,-1818.98,0.00013698,2]
[353836220,1740085839160,-500.0,0.00013698,2]
[353836221,1740085839169,-500.0,0.00013698,2]
[353836222,1740085839179,-500.0,0.00013698,2]
[353836223,1740085839188,-500.0,0.00013698,2]
[353836224,1740085839330,-500.0,0.00013698,2]
[353836225,1740085839339,-2771.81,0.00013698,2]
[353836226,1740085839348,-1352.82,0.00013698,2]
[353836227,1740085839359,-500.0,0.00013698,2]
[353836228,1740085839368,-500.0,0.00013698,2]
[353836229,1740085839377,-500.0,0.00013698,2]
[353836230,1740085839386,-500.0,0.00013698,2]
[353836231,1740085839396,-500.0,0.00013698,2]
[353836232,1740085839405,-500.0,0.00013698,2]
[353836233,1740085839414,-1081.46,0.00013698,2]
[353836234,1740085839423,-500.0,0.00013698,2]